bitfinex/quotes_ETHUSD_20220120
["timestamp","ask_amount","ask_price","bid_price","bid_amount"]
[1642669178014,3.62337181,3131.8,3131.7,2.72581041]
[1642669178214,3.32337181,3131.8,3131.7,2.72581041]
[1642669178414,0.09312818,3131.8,3131.7,2.72581041]
[1642669178915,1.131,3132.4,3131.8,0.18625636]
[1642669179114,1.131,3132.4,3131.9,2.71934823]
[1642669179318,1.131,3132.4,3131.9,2.72467356]
[1642669179514,0.79855,3132.4,3132.0,2.72410514]
[1642669179769,0.1277,3132.3,3132.1,2.71934823]
[1642669179964,0.1277,3132.3,3132.1,2.72353671]
[1642669180163,0.1277,3132.3,3132.2,2.72296829]
[1642669180364,0.79855,3132.4,3132.2,2.72296829]
[1642669180365,0.92625,3132.4,3132.2,2.72296829]
[1642669180564,0.92625,3132.4,3132.3,2.71934823]
[1642669180565,2.52625,3132.4,3132.3,2.71934823]
[1642669180768,5.25497701,3132.4,3132.3,2.72239987]
[1642669180966,3.82727701,3132.4,3132.3,2.72239987]
[1642669181167,5.12727701,3132.4,3132.3,0.00305164]
[1642669181366,3.95477701,3132.4,3132.3,0.00305164]
[1642669181565,5.12727701,3132.4,3132.0,0.00475691]
[1642669181765,5.12727701,3132.4,3132.1,2.71934823]
[1642669181766,0.926359,3132.4,3132.1,2.71934823]
[1642669181970,1.09855,3132.4,3132.1,2.71934823]
[1642669182265,1.09855,3132.4,3132.2,0.00362006]
[1642669182266,1.39855,3132.4,3132.2,0.00362006]
[1642669182466,0.1277,3132.3,3132.2,0.00362006]
[1642669182665,3.74635587,3132.3,3132.2,0.00362006]
[1642669182868,3.74635587,3132.3,3132.2,2.72296829]
[1642669183066,1.1277,3132.3,3132.2,2.72296829]
[1642669183266,0.1277,3132.3,3132.2,2.72296829]
[1642669184212,1.39855,3132.4,3132.2,2.72296829]
[1642669184413,1.39855,3132.4,3132.3,2.71934823]
[1642669184616,1.39855,3132.4,3132.3,2.72239987]
[1642669184815,1.09855,3132.4,3132.3,2.72239987]
[1642669185216,0.79855,3132.4,3132.3,2.72239987]
[1642669185419,1.09855,3132.4,3132.3,2.72239987]
[1642669185617,2.09855,3132.4,3132.3,2.72239987]
[1642669185817,4.04855,3132.4,3132.3,2.72239987]
[1642669186016,5.69855,3132.4,3132.3,2.72239987]
[1642669186218,8.41336359,3132.4,3132.3,2.72239987]
[1642669188160,5.69855,3132.4,3132.3,2.72239987]
[1642669188362,4.09855,3132.4,3132.3,2.72239987]
[1642669188561,1.65,3132.4,3132.3,2.72239987]
[1642669189560,1.777808,3132.4,3132.3,2.72239987]
[1642669189766,1.777808,3132.4,3132.3,2.73765627]
[1642669189963,2.37689783,3132.4,3132.3,2.73765627]
[1642669190363,1.65,3132.4,3132.3,2.73765627]
[1642669192814,3.3,3132.4,3132.3,2.73765627]
[1642669193215,3.427799,3132.4,3132.3,2.73765627]
[1642669193618,1.65,3132.4,3132.3,2.73765627]
[1642669195765,3.3,3132.4,3132.3,2.73765627]
[1642669196365,6.61721822,3132.4,3132.3,2.73765627]
[1642669196565,7.61721822,3132.4,3132.3,2.73765627]
[1642669196865,9.26721822,3132.4,3132.3,2.73765627]
[1642669197265,9.39502722,3132.4,3132.3,2.73765627]
[1642669197667,9.26721822,3132.4,3132.3,2.73765627]
[1642669197866,10.86721822,3132.4,3132.3,2.73765627]
[1642669198715,11.46071822,3132.4,3132.3,2.73765627]
[1642669198916,8.73321822,3132.4,3132.3,2.73765627]
[1642669199514,7.88178822,3132.4,3132.3,2.73765627]
[1642669199718,7.28178822,3132.4,3132.3,2.73765627]
[1642669199917,4.56457,3132.4,3132.3,2.73765627]
[1642669200119,4.09857,3132.4,3132.3,2.73765627]
[1642669200917,4.69857,3132.4,3132.3,2.73765627]
[1642669201119,7.39581241,3132.4,3132.3,2.73765627]
[1642669202767,9.04581241,3132.4,3132.3,2.73765627]
[1642669203367,10.51181241,3132.4,3132.3,2.73765627]
[1642669203568,10.51181241,3132.4,3132.2,0.01407215]
[1642669203569,11.91268688,3132.4,3132.2,0.01407215]
[1642669203768,4.72039474,3132.3,3132.2,0.01407215]
[1642669203968,5.18639474,3132.3,3132.2,0.01407215]
[1642669204167,5.18639474,3132.3,3131.8,0.18625636]
[1642669204168,7.17382497,3132.3,3131.8,0.18625636]
[1642669204369,1.59746,3132.2,3131.8,0.18625636]
[1642669204569,3.55767934,3132.1,3131.8,0.18625636]
[1642669204768,3.85767934,3132.1,3131.8,0.18625636]
[1642669204968,1.0,3132.0,3131.8,0.18625636]
[1642669205169,2.79062857,3131.9,3131.8,0.18625636]
[1642669205368,3.09062857,3131.9,3131.8,0.18625636]
[1642669205572,4.09062857,3131.9,3131.8,0.18625636]
[1642669206417,1.3,3131.9,3131.8,0.18625636]
[1642669206614,0.3,3131.9,3131.8,0.18625636]
[1642669206814,1.3,3131.9,3131.8,0.18909847]
[1642669207216,0.3,3131.9,3131.8,0.18909847]
[1642669207414,0.3,3132.0,3131.8,0.18909847]
[1642669207615,0.127825,3132.2,3131.8,0.18909847]
[1642669207816,0.127825,3132.2,3131.9,0.00227369]
[1642669209016,0.427825,3132.2,3131.9,0.00227369]
[1642669209217,1.70730994,3132.0,3131.9,0.00227369]
[1642669212072,5.03897037,3132.0,3131.9,0.00227369]
[1642669212873,5.83765037,3132.0,3131.9,0.00227369]
[1642669213517,6.83765037,3132.0,3131.9,0.00227369]
[1642669213714,6.96535037,3132.0,3131.9,0.00227369]
[1642669216520,5.66535037,3132.0,3131.9,0.00227369]
[1642669216920,5.96535037,3132.0,3131.9,0.00227369]
[1642669217170,5.83765037,3132.0,3131.9,0.00227369]
[1642669217571,6.83765037,3132.0,3131.9,0.00227369]
[1642669218376,2.30730994,3132.0,3131.9,0.00227369]
[1642669218577,2.00730994,3132.0,3131.9,0.00227369]
[1642669219177,2.30730994,3132.0,3131.9,0.00227369]
[1642669219779,2.00730994,3132.0,3131.9,0.00227369]
[1642669219981,1.70730994,3132.0,3131.9,0.00227369]
[1642669220781,5.14033958,3132.0,3131.9,0.00227369]
[1642669221045,6.14033958,3132.0,3131.9,0.00227369]
[1642669221238,7.14033958,3132.0,3131.9,0.00227369]
[1642669221443,6.14033958,3132.0,3131.9,0.00227369]
[1642669222340,7.14033958,3132.0,3131.9,0.00227369]
[1642669223745,7.14033958,3132.0,3131.9,2.72196889]
[1642669223951,3.55,3131.9,3131.8,0.18625636]
[1642669224145,4.82379715,3131.9,3131.8,0.18625636]
[1642669224546,5.67745212,3131.9,3131.1,1.61196362]
[1642669224776,0.1277,3131.8,3131.0,1.61196362]
[1642669224983,0.466,3131.8,3131.2,0.00397896]
[1642669225276,2.19171079,3131.7,3131.2,0.00397896]
[1642669225577,4.49171079,3131.7,3131.2,0.00397896]
[1642669225778,0.79881,3131.6,3131.2,0.00397896]
[1642669225979,2.01002977,3131.5,3131.1,0.00454739]
[1642669226178,3.60772977,3131.5,3131.1,0.00454739]
[1642669226378,3.90772977,3131.5,3131.1,0.00454739]
[1642669226778,1.8977,3131.5,3131.1,0.00454739]
[1642669226980,0.79884,3131.4,3131.1,1.61651101]
[1642669227180,0.3,3131.5,3131.1,1.61651101]
[1642669227481,0.3,3131.4,3131.2,1.61196362]
[1642669227680,0.3,3131.6,3131.2,1.61196362]
[1642669227880,1.78161459,3131.6,3131.3,0.00341054]
[1642669228080,1.6,3131.7,3131.3,0.00341054]
[1642669228427,1.95123863,3131.6,3131.3,0.00341054]
[1642669228625,3.25123863,3131.6,3131.3,0.00341054]
[1642669228826,1.3,3131.6,3131.3,0.00341054]
[1642669229026,0.3,3131.6,3131.3,0.00341054]
[1642669229426,2.39872,3131.7,3131.3,0.00341054]
[1642669230032,2.30730994,3131.5,3131.3,0.00341054]
[1642669230332,2.30640876,3131.5,3131.3,0.00341054]
[1642669231933,2.00640876,3131.5,3131.3,0.00341054]
[1642669232198,2.00640876,3131.5,3131.3,1.61537416]
[1642669232588,2.00640876,3131.5,3131.4,0.00284212]
[1642669232789,1.70730994,3131.5,3131.4,0.00284212]
[1642669240876,1.70730994,3131.5,3131.3,0.00341054]
[1642669241077,2.00730994,3131.5,3131.3,0.00341054]
[1642669241279,0.3,3131.5,3131.3,0.00341054]
[1642669241677,1.83500994,3131.4,3131.3,0.00341054]
[1642669241876,2.30730994,3131.4,3131.1,0.00454739]
[1642669242076,3.10610994,3131.4,3131.1,0.00454739]
[1642669242476,2.30730994,3131.4,3131.1,0.00454739]
[1642669242877,2.30730994,3131.4,3131.1,1.61651101]
[1642669243077,2.30730994,3131.4,3131.1,0.00454739]
[1642669243926,2.30730994,3131.4,3131.2,2.72001725]
[1642669244126,2.43514394,3131.4,3131.3,2.72001725]
[1642669244330,2.43514394,3131.4,3131.3,0.00341054]
[1642669244533,2.30730994,3131.4,3131.3,0.00341054]
[1642669244731,1.83500994,3131.4,3131.3,0.00341054]
[1642669244933,2.43500994,3131.4,3131.3,0.00341054]
[1642669245130,2.43500994,3131.4,3131.3,2.72342779]
[1642669245331,2.43500994,3131.4,3131.3,0.00341054]
[1642669245731,0.3,3131.3,3131.1,0.00454739]
[1642669245930,0.1277,3131.2,3131.1,0.00454739]
[1642669246331,0.3,3131.3,3131.0,1.61707943]
[1642669246532,2.25248497,3131.4,3131.0,1.61707943]
[1642669246732,1.39883,3131.4,3131.1,0.00454739]
[1642669246934,1.70730994,3131.2,3131.1,0.00454739]
[1642669247176,2.00730994,3131.2,3131.1,0.00454739]
[1642669247582,2.00730994,3131.2,3131.1,1.61651101]
[1642669247777,2.00730994,3131.2,3131.1,0.00454739]
[1642669247978,1.70730994,3131.2,3131.1,0.00454739]
[1642669248179,1.70730994,3131.2,3131.1,1.61651101]
[1642669249681,2.00730994,3131.2,3131.1,1.61651101]
[1642669250084,2.00730994,3131.2,3131.1,0.00454739]
[1642669250480,2.00730994,3131.2,3131.0,0.00511581]
[1642669250681,1.70730994,3131.2,3131.0,0.00511581]
[1642669251529,1.70730994,3131.2,3131.0,0.00428346]
[1642669251730,1.70730994,3131.2,3131.0,2.42775861]
[1642669251930,0.127831,3131.4,3131.0,2.42775861]
[1642669252131,0.85365497,3131.4,3131.2,1.60365191]
[1642669252333,1.70730994,3131.4,3131.2,1.60365191]
[1642669252531,1.70730994,3131.4,3131.3,0.00257819]
[1642669252532,2.00730994,3131.4,3131.3,0.00257819]
[1642669252734,2.30730994,3131.4,3131.3,0.00257819]
[1642669254776,2.30730994,3131.4,3131.2,0.00314661]
[1642669254975,2.30730994,3131.4,3131.3,0.00257819]
[1642669255175,2.30730994,3131.4,3131.2,0.00314661]
[1642669255777,2.43514094,3131.4,3131.2,1.60679852]
[1642669255976,2.43514094,3131.4,3131.2,0.00314661]
[1642669256177,2.43514094,3131.4,3131.3,0.00257819]
[1642669256376,2.43514094,3131.4,3131.2,1.60679852]
[1642669256676,2.43514094,3131.4,3131.3,1.6062301]
[1642669256677,1.70730994,3131.4,3131.3,1.6062301]
[1642669256878,1.70730994,3131.4,3131.3,5.37120438]
[1642669257077,0.07251424,3131.9,3131.5,4.1]
[1642669257282,0.07251424,3131.9,3131.7,1.60194088]
[1642669257283,0.05438568,3131.9,3131.7,1.60194088]
[1642669257478,0.05438568,3131.9,3131.8,3.65194088]
[1642669257677,0.05438568,3131.9,3131.8,2.05]
[1642669257880,0.05521803,3131.9,3131.8,2.05]
[1642669258078,0.05521803,3131.9,3131.8,3.65194088]
[1642669258927,0.05521803,3131.9,3131.8,2.05]
[1642669259127,0.05521803,3131.9,3131.8,3.65194088]
[1642669259327,0.03708947,3131.9,3131.8,3.65194088]
[1642669260534,0.03708947,3131.9,3131.8,6.34884873]
[1642669260936,0.03708947,3131.9,3131.8,6.37141506]
[1642669261435,0.01896091,3131.9,3131.8,6.37141506]
[1642669261934,0.01896091,3131.9,3131.8,4.76947418]
[1642669262168,0.01896091,3131.9,3131.8,6.37141506]
[1642669262374,0.01896091,3131.9,3131.8,9.05937515]
[1642669262575,0.01896091,3131.9,3131.8,8.45993427]
[1642669262775,0.01896091,3131.9,3131.8,10.86284559]
[1642669263374,0.01896091,3131.9,3131.8,8.45993427]
[1642669263574,0.01896091,3131.9,3131.8,8.61973427]
[1642669264175,0.01896091,3131.9,3131.8,11.02264559]
[1642669264374,0.01896091,3131.9,3131.8,8.45993427]
[1642669264576,0.01896091,3131.9,3131.8,10.05775274]
[1642669264776,0.01896091,3131.9,3131.8,8.61973427]
[1642669267730,0.01896091,3131.9,3131.8,5.93177418]
[1642669267927,0.01896091,3131.9,3131.8,7.62909528]
[1642669268734,0.00083235,3131.9,3131.8,7.62909528]
[1642669269432,0.1277,3132.3,3131.9,4.95]
[1642669269695,5.5887,3133.6,3132.2,0.01205877]
[1642669269696,0.01812856,3132.4,3132.2,0.01205877]
[1642669269890,0.01812856,3132.4,3132.3,5.61947418]
[1642669270288,0.01812856,3132.4,3132.3,8.08996524]
[1642669270491,0.01812856,3132.4,3132.3,10.91372123]
[1642669271094,0.1275,3132.7,3132.3,10.91372123]
[1642669271392,0.1275,3132.7,3132.4,2.71947418]
[1642669271393,0.00397896,3132.6,3132.4,2.71947418]
[1642669271590,0.00397896,3132.6,3132.4,3.60547418]
[1642669271793,0.00341054,3132.5,3132.4,0.886]
[1642669271991,0.0215391,3132.5,3132.4,5.89679691]
[1642669273420,0.00341054,3132.5,3132.4,5.89679691]
[1642669273624,0.00341054,3132.5,3132.4,3.086]
[1642669274022,0.00341054,3132.5,3132.4,8.08126234]
[1642669274423,0.00341054,3132.5,3132.4,5.76313378]
[1642669274826,0.00341054,3132.5,3132.4,5.92293378]
[1642669277875,0.00341054,3132.5,3132.4,3.72293378]
[1642669278276,0.00341054,3132.5,3132.4,1.02767144]
[1642669278477,0.00341054,3132.5,3132.4,0.1598]
[1642669278879,0.00341054,3132.5,3132.4,3.1098]
[1642669279076,0.00341054,3132.5,3132.4,5.90062949]
[1642669279675,0.00341054,3132.5,3132.4,5.92255056]
[1642669282225,0.00341054,3132.5,3132.4,6.85015056]
[1642669282826,0.00245151,3132.5,3132.4,6.85015056]
[1642669284676,0.00245151,3132.5,3132.4,6.83964622]
[1642669284875,0.00245151,3132.5,3132.4,6.67984622]
[1642669285075,0.00245151,3132.5,3132.4,6.83964622]
[1642669285678,3.8487,3133.3,3132.6,0.00490301]
[1642669285879,3.8487,3133.3,3132.6,2.98169952]
[1642669286178,0.00397896,3133.2,3132.6,2.98169952]
[1642669286378,0.1275,3133.1,3132.6,2.98169952]
[1642669286578,0.13091054,3133.1,3132.6,0.00490301]
[1642669286780,4.0212,3133.3,3132.7,2.71886062]
[1642669286781,0.00284212,3133.0,3132.7,2.71886062]
[1642669287180,0.00227369,3132.9,3132.8,1.16559978]
[1642669287378,0.00227369,3132.9,3132.8,3.8844604]
[1642669287579,0.00341054,3132.9,3132.8,3.8844604]
[1642669290526,0.00341054,3132.9,3132.8,6.6975022]
[1642669290726,0.00341054,3132.9,3132.8,3.8844604]
[1642669294680,0.00341054,3132.9,3132.8,6.69406845]
[1642669294880,0.00341054,3132.9,3132.8,6.85386845]
[1642669295481,0.00341054,3132.9,3132.8,4.0442604]
[1642669295921,0.00341054,3132.9,3132.8,3.8844604]
[1642669302002,0.00341054,3132.9,3132.8,4.0442604]
[1642669302405,0.00341054,3132.9,3132.8,3.8844604]
[1642669302801,0.00341054,3132.9,3132.8,5.47944997]
[1642669303003,0.00341054,3132.9,3132.8,3.8844604]
[1642669303203,0.00341054,3132.9,3132.8,6.88248716]
[1642669304224,0.00341054,3132.9,3132.8,9.60497673]
[1642669304624,3.37742543,3133.9,3132.9,4.95]
[1642669304834,3.37742543,3133.9,3133.8,1.27083471]
[1642669305034,0.1275,3133.9,3133.8,1.27083471]
[1642669305233,0.01144852,3133.9,3133.8,3.98969533]
[1642669305434,0.1275,3134.1,3133.8,3.98969533]
[1642669305731,0.00511581,3134.0,3133.9,4.01885393]
[1642669306834,0.13261581,3134.0,3133.9,4.01885393]
[1642669307479,0.00511581,3134.0,3133.9,4.01885393]
[1642669310922,0.00364297,3134.0,3133.9,4.01885393]
[1642669314876,0.00267687,3134.0,3133.9,4.01885393]
[1642669319741,0.00267687,3134.0,3133.9,4.04453627]
[1642669320339,0.00267687,3134.0,3133.9,2.74454296]
[1642669320742,0.13017687,3134.0,3133.9,2.74454296]
[1642669321138,0.43017687,3134.0,3133.9,2.74454296]
[1642669321338,0.13017687,3134.0,3133.9,2.74454296]
[1642669321538,0.00267687,3134.0,3133.9,2.74454296]
[1642669322874,0.00267687,3134.0,3133.9,4.00524877]
[1642669324176,0.00267687,3134.0,3133.9,2.74454296]
[1642669324983,0.00267687,3134.0,3133.9,4.09766414]
[1642669325384,0.00267687,3134.0,3133.9,2.74454296]
[1642669325682,0.30267687,3134.0,3133.9,2.74454296]
[1642669329237,0.00267687,3134.0,3133.9,2.74454296]
[1642669331384,0.00267687,3134.0,3133.9,4.27930163]
[1642669332886,0.00267687,3134.0,3133.9,2.74454296]
[1642669334526,0.00267687,3134.0,3133.9,5.00146898]
[1642669335331,0.00267687,3134.0,3133.9,2.71886062]
[1642669335732,0.00267687,3134.0,3133.3,1.59498957]
[1642669335933,0.00267687,3134.0,3133.3,4.28607271]
[1642669336133,0.00210845,3133.9,3133.4,2.71886062]
[1642669336532,0.00154003,3133.8,3133.4,2.71886062]
[1642669336733,0.00154003,3133.8,3133.3,1.59498957]
[1642669336734,0.00154003,3133.8,3133.5,2.71886062]
[1642669336933,0.0009716,3133.7,3133.5,2.71886062]
[1642669337192,0.0009716,3133.7,3133.6,2.41365934]
[1642669337379,0.00267687,3134.0,3133.6,5.13251996]
[1642669337579,0.127739,3134.1,3133.7,2.71886062]
[1642669338079,0.00267687,3134.0,3133.7,2.71886062]
[1642669338280,0.00267687,3134.0,3133.7,2.71802502]
[1642669338481,0.00210845,3133.9,3133.7,2.71802502]
[1642669338882,0.00154003,3133.8,3133.7,2.71802502]
[1642669340484,0.00154003,3133.8,3133.3,1.59498957]
[1642669340686,0.00154003,3133.8,3133.2,1.59498957]
[1642669340931,0.0009716,3133.7,3133.2,1.59498957]
[1642669341130,0.0009716,3133.7,3133.3,0.00130209]
[1642669341432,0.0009716,3133.7,3133.4,2.82557093]
[1642669344437,0.0009716,3133.7,3133.3,0.00130209]
[1642669344682,0.5935,3133.6,3133.3,0.00130209]
[1642669344880,0.5935,3133.6,3133.1,0.00243894]
[1642669345082,0.8935,3133.6,3132.9,0.00357579]
[1642669345282,3.22110624,3133.5,3132.9,0.00357579]
[1642669345484,1.39187,3133.4,3132.9,0.00357579]
[1642669345682,2.92110624,3133.3,3132.9,0.00357579]
[1642669345883,0.5935,3133.2,3132.9,0.00357579]
[1642669346084,1.5935,3133.2,3132.9,0.00357579]
[1642669346283,1.8935,3133.2,3132.9,0.00357579]
[1642669346483,0.8935,3133.2,3132.9,0.00357579]
[1642669346687,2.80858327,3133.1,3132.9,0.00357579]
[1642669346884,1.466,3133.0,3132.9,0.00357579]
[1642669347083,4.71042344,3133.0,3132.9,0.00357579]
[1642669347283,4.71042344,3133.0,3132.7,0.00471263]
[1642669348284,3.71042344,3133.0,3132.7,0.00471263]
[1642669348731,3.58292344,3133.0,3132.7,0.00471263]
[1642669348931,4.58292344,3133.0,3132.7,0.00471263]
[1642669349234,1.7650251,3133.0,3132.7,0.00471263]
[1642669349632,1.7650251,3133.0,3132.9,0.01353077]
[1642669349833,4.11363134,3133.0,3132.8,0.0122566]
[1642669350033,0.1275,3132.9,3132.8,0.0122566]
[1642669350234,0.5935,3132.9,3132.8,0.0122566]
[1642669350433,0.5935,3132.9,3132.8,0.01640081]
[1642669351937,3.41227767,3132.9,3132.8,0.01640081]
[1642669352375,3.28477767,3132.9,3132.8,0.01640081]
[1642669352575,4.28477767,3132.9,3132.8,0.01640081]
[1642669354385,5.74859,3132.7,3132.6,0.00490301]
[1642669354582,9.85738867,3132.7,3132.6,0.00490301]
[1642669354784,0.79863,3132.5,3131.7,5.24568957]
[1642669354984,1.26463,3132.5,3131.7,5.24568957]
[1642669355182,2.56463,3132.5,3131.8,0.00454738]
[1642669355384,0.79862,3132.3,3131.8,0.00454738]
[1642669355583,1.09862,3132.3,3131.8,0.00454738]
[1642669355782,1.09862,3132.3,3131.6,0.00568423]
[1642669356334,2.39862,3132.3,3131.6,0.00568423]
[1642669356735,2.52632,3132.3,3131.6,0.00568423]
[1642669356938,2.52632,3132.3,3131.5,0.00625265]
[1642669356939,2.97904812,3132.2,3131.5,0.00625265]
[1642669357737,0.79868,3132.0,3131.5,0.00625265]
[1642669357936,2.80434115,3131.9,3131.5,0.00625265]
[1642669358439,0.3,3131.8,3131.6,2.71964403]
[1642669358639,2.85056388,3131.7,3131.6,2.71964403]
[1642669359137,3.64929388,3131.7,3131.6,2.71964403]
[1642669359338,3.64929388,3131.7,3131.5,2.71964403]
[1642669359689,3.64929388,3131.7,3131.4,2.64407259]
[1642669359690,3.64929388,3131.7,3131.6,2.71964403]
[1642669360281,3.64929388,3131.7,3131.4,2.64407259]
[1642669360282,3.64929388,3131.7,3131.5,2.71964403]
[1642669360483,0.3,3131.8,3131.5,2.71964403]
[1642669360782,0.3,3132.0,3131.5,2.71964403]
[1642669361183,0.466,3132.1,3131.5,2.71964403]
[1642669361385,0.766,3132.1,3131.5,2.71964403]
[1642669361583,2.59851288,3132.0,3131.5,2.71964403]
[1642669361783,0.466,3132.1,3131.5,2.71964403]
[1642669361984,2.68471336,3132.0,3131.5,2.71964403]
[1642669362784,0.466,3132.1,3131.5,2.71964403]
[1642669362984,2.88199091,3132.0,3131.5,2.71964403]
[1642669363184,0.466,3132.1,3131.5,2.71964403]
[1642669364836,3.40677057,3132.0,3131.5,2.71964403]
[1642669365532,1.0,3131.9,3131.5,2.71964403]
[1642669365735,0.466,3131.8,3131.5,2.71964403]
[1642669365935,0.1277,3131.7,3131.5,2.71964403]
[1642669367587,0.1277,3131.7,3131.4,2.64407259]
[1642669367788,3.02816308,3131.7,3131.4,2.64407259]
[1642669367988,3.32816308,3131.7,3131.5,0.00625265]
[1642669368188,3.76222046,3131.6,3131.5,0.00625265]
[1642669368389,3.88992046,3131.6,3131.5,0.00625265]
[1642669368588,4.18992046,3131.6,3131.5,0.00625265]
[1642669370493,5.18992046,3131.6,3131.5,0.00625265]
[1642669370693,4.18992046,3131.6,3131.5,0.00625265]
[1642669370929,4.31776246,3131.6,3131.5,0.00625265]
[1642669371430,4.65592046,3131.6,3131.5,0.00625265]
[1642669372836,4.52822046,3131.6,3131.5,0.00625265]
[1642669373634,4.52822046,3131.6,3131.4,2.64407259]
[1642669373635,3.95,3131.5,3131.4,2.64407259]
[1642669373835,9.26505862,3131.5,3131.4,2.64407259]
[1642669374034,9.56505862,3131.5,3131.4,2.64407259]
[1642669374441,10.56505862,3131.5,3131.4,2.64407259]
[1642669374701,0.83414151,3131.3,3130.4,1.59498957]
[1642669374896,3.70473746,3131.2,3130.3,1.59498957]
[1642669375097,3.70473746,3131.2,3130.0,0.9436]
[1642669375098,1.0,3131.1,3130.5,0.00568424]
[1642669375299,2.79223707,3131.0,3130.5,0.00568424]
[1642669375496,1.0,3131.1,3130.5,0.00568424]
[1642669375497,1.0,3131.1,3131.0,1.25998541]
[1642669375896,1.0,3131.1,3131.0,1.26282753]
[1642669376097,1.63980696,3131.2,3131.0,1.26282753]
[1642669376496,3.23762696,3131.2,3131.1,0.0022737]
[1642669376698,0.3,3131.2,3131.1,0.0022737]
[1642669376898,4.3234,3131.6,3131.1,0.0022737]
[1642669376899,4.1957,3131.6,3131.1,0.0022737]
[1642669377099,1.2778,3131.7,3131.1,0.0022737]
[1642669377599,0.79874,3131.6,3131.1,2.68644952]
[1642669377801,0.79874,3131.6,3131.4,1.42963276]
[1642669378099,9.0971,3132.1,3131.5,2.66313751]
[1642669378300,3.5081,3132.1,3131.4,1.42963276]
[1642669378529,0.00113684,3131.7,3131.4,1.42963276]
[1642669379330,0.00113684,3131.7,3131.5,1.16651682]
[1642669380733,0.00113684,3131.7,3131.5,3.84138122]
[1642669380934,0.00113684,3131.7,3131.5,1.16651682]
[1642669382385,0.00113684,3131.7,3131.6,2.68542216]
[1642669382986,0.00113684,3131.7,3131.5,1.16651682]
[1642669383183,0.00113684,3131.7,3131.4,1.42963276]
[1642669383887,0.00113684,3131.7,3131.2,1.59669484]
[1642669384087,0.15,3131.5,3131.2,1.59669484]
[1642669384287,0.15,3131.5,3131.3,0.00113685]
[1642669384486,0.15,3131.5,3131.3,1.59612642]
[1642669384689,0.15,3131.5,3131.3,0.00113685]
[1642669385287,0.15,3131.5,3131.3,1.59612642]
[1642669385492,0.15,3131.5,3131.3,0.00113685]
[1642669386139,0.15,3131.5,3131.4,0.00561474]
[1642669387643,0.14911998,3131.5,3131.4,0.00561474]
[1642669387843,0.14911998,3131.5,3131.4,2.72515436]
[1642669388146,0.14911998,3131.5,3131.4,1.60060431]
[1642669390888,0.00113684,3131.7,3131.5,0.29823996]
[1642669391081,0.00113684,3131.7,3131.6,2.71953962]
[1642669392385,0.12883684,3131.7,3131.6,2.71953962]
[1642669393285,2.78998872,3131.7,3131.6,2.71953962]
[1642669393539,3.25598872,3131.7,3131.6,2.71953962]
[1642669393738,3.35,3131.6,3131.5,0.29823996]
[1642669393939,9.49566198,3131.6,3131.5,0.29823996]
[1642669394137,9.79566198,3131.6,3131.5,0.29823996]
[1642669395139,9.79566198,3131.6,3131.4,0.00561474]
[1642669395341,3.92661,3131.5,3131.4,0.00561474]
[1642669395540,8.09745163,3131.5,3131.4,0.00561474]
[1642669395740,8.09745163,3131.5,3131.0,2.25998541]
[1642669395741,0.7990006,3131.3,3131.0,2.25998541]
[1642669396043,5.51753165,3131.2,3131.0,2.25998541]
[1642669396240,2.74256557,3131.1,3131.0,2.25998541]
[1642669396542,6.0937,3131.1,3131.0,2.26112226]
[1642669397179,6.89268,3131.1,3131.0,2.26112226]
[1642669397382,0.7990263,3130.9,3130.4,1.59498957]
[1642669397583,0.7990263,3130.9,3130.1,5.82096538]
[1642669397584,1.066,3130.8,3130.1,5.47688957]
[1642669397782,1.066,3130.8,3130.5,0.00284212]
[1642669397783,1.76451914,3130.7,3130.5,0.00284212]
[1642669397984,3.616,3130.6,3130.5,0.00284212]
[1642669398184,3.616,3130.6,3130.3,0.00397897]
[1642669398383,1.0,3130.5,3130.3,0.00397897]
[1642669398587,3.816,3130.4,3130.3,0.00397897]
[1642669398784,7.4928608,3130.4,3130.2,0.00454739]
[1642669398984,7.4928608,3130.4,3130.0,1.59498957]
[1642669398985,2.95886276,3130.3,3130.0,1.60067381]
[1642669399185,0.466,3130.2,3130.1,0.00511581]
[1642669399387,3.67045127,3130.2,3130.1,0.00511581]
[1642669401030,3.67045127,3130.2,3130.0,1.60067381]
[1642669401236,2.74202126,3130.1,3130.0,1.60067381]
[1642669401431,3.04202126,3130.1,3130.0,1.59498957]
[1642669401631,0.79916,3130.0,3129.9,1.59498957]
[1642669401931,3.57142287,3130.0,3129.9,1.60124223]
[1642669403538,3.57142287,3130.0,3129.9,0.00625266]
[1642669403937,3.57142287,3130.0,3129.9,1.60124223]
[1642669404339,0.33937979,3130.1,3129.9,1.60124223]
[1642669404539,0.766,3130.2,3130.0,1.59498957]
[1642669404540,1.09618758,3130.2,3130.0,1.59498957]
[1642669404790,1.09618758,3130.2,3130.0,1.0621073]
[1642669404791,1.066,3130.2,3130.0,1.0621073]
[1642669404992,1.066,3130.2,3130.1,0.00511581]
[1642669405391,1.066,3130.2,3129.7,0.00738951]
[1642669405595,0.6,3130.2,3129.7,0.00738951]
[1642669405792,0.3,3130.2,3129.7,2.40291132]
[1642669405995,3.97376472,3130.6,3129.6,2.41086925]
[1642669406195,3.97376472,3130.6,3130.1,0.01221592]
[1642669406594,3.97376472,3130.6,3130.2,0.00454739]
[1642669407393,0.79905,3130.4,3130.2,0.00454739]
[1642669407596,1.39905,3130.4,3130.2,0.00454739]
[1642669407994,1.43075426,3130.4,3130.2,0.00454739]
[1642669409237,1.43075426,3130.4,3130.1,0.00647668]
[1642669410140,1.09905,3130.4,3130.1,0.00647668]
[1642669410338,1.39905,3130.4,3130.1,0.00647668]
[1642669410739,2.62868179,3130.3,3130.1,0.00647668]
[1642669411040,0.1277,3130.2,3130.1,0.00647668]
[1642669411239,0.1277,3130.2,3129.6,2.40291132]
[1642669411441,1.13592741,3130.4,3129.5,2.40291132]
[1642669411442,1.26362741,3130.4,3129.5,2.40291132]
[1642669411641,1.26362741,3130.4,3129.7,0.00284212]
[1642669411642,2.94557369,3130.3,3129.7,0.00284212]
[1642669411842,0.3,3130.3,3129.7,0.00284212]
[1642669412040,1.39905,3130.4,3129.7,2.40575344]
[1642669412300,1.39905,3130.4,3129.7,0.00284212]
[1642669412499,1.39905,3130.4,3129.8,0.00227369]
[1642669413705,2.7888368,3130.3,3129.8,1.6180335]
[1642669413905,2.7888368,3130.3,3129.8,0.00227369]
[1642669414106,2.7888368,3130.3,3129.9,0.00170527]
[1642669414309,2.7888368,3130.3,3129.8,0.00227369]
[1642669415107,2.7888368,3130.3,3129.8,2.72301438]
[1642669415307,2.7888368,3130.3,3129.9,2.72074069]
[1642669415507,2.7888368,3130.3,3130.0,2.72074069]
[1642669415708,2.7888368,3130.3,3130.1,2.72074069]
[1642669415937,2.7888368,3130.3,3130.2,2.72074069]
[1642669416138,2.7888368,3130.3,3130.2,2.59048945]